Cogmind - Beta 14 @@@ ROGUE MODE // 2025.01.17 @ 18:49:00 Player: Egor Result: Destroyed self via exploding Neutrino Reactor Performance ------------- Evolutions (2) 1000 Regions Visited (3) 600 Robots Destroyed (30) 150 Value Destroyed (1010) 1010 Prototype IDs (2) 40 Alien Tech Used (0) 0 Bonus (13) 13 TOTAL SCORE: 2813 Bonus ------- High Alert Combat Kills 13 Cogmind --------- Core Integrity 0/550 Matter 175/300 Energy 58/100 System Corruption 4% Temperature Cool (0) Movement Walking (120) Location -8/Materials Parts ------- > --- POWER (2) -------- (None) > --- PROPULSION (3) --- Aluminum Leg Carbon-fiber Leg Carbon-fiber Leg > --- UTILITY (3) ------ Signal Interpreter Recoil Stabilizer > --- WEAPON (3) ------- High-powered Shotgun Missile Launcher Datajack > --- INVENTORY (5) ---- VTOL Module Target Analyzer Heavy Particle Cannon Peak State ------------ > --- POWER ------------ (None) > --- PROPULSION ------- Aluminum Leg Carbon-fiber Leg Carbon-fiber Leg > --- UTILITY ---------- Signal Interpreter Recoil Stabilizer > --- WEAPON ----------- High-powered Shotgun Missile Launcher Datajack > --- INVENTORY -------- VTOL Module Target Analyzer [Rating: 18] Favorites ----------- Power Improved Ion Engine Engine Improved Ion Engine Propulsion Flight Unit Leg Aluminum Leg Wheel Compact Wheel Hover Unit Improved Hover Unit Flight Unit Flight Unit Utility Signal Interpreter Device Terrain Scanner Processor Signal Interpreter Weapon Small Laser Energy Gun Small Laser Energy Cannon Light EM Pulse Cannon Ballistic Gun Assault Rifle Launcher Missile Launcher Special Melee Weapon Datajack Build | -11 -10 -9 -8 ------- Run | Yrd Mat Mat Mat Slots Evolved 4 | . . 2 2 Power 1 | . . . 1 Propulsion 1 | . . 1 . Utility 1 | . . 1 . Weapon 1 | . . . 1 Parts Attached 50 | 5 11 20 14 Power 7 | 1 2 2 2 Engine 7 | 1 2 2 2 Core . | . . . . Reactor . | . . . . Propulsion 21 | 2 7 9 3 Treads . | . . . . Leg 8 | . 1 4 3 Wheel 4 | 2 1 1 . Hover 3 | . . 3 . Flight 6 | . 5 1 . Utility 6 | . 2 2 2 Device 5 | . 1 2 2 Storage . | . . . . Processor 1 | . 1 . . Hackware . | . . . . Protection . | . . . . Artifact . | . . . . Weapon 16 | 2 . 7 7 Energy Gun 6 | 1 . 4 1 Energy Cannon 2 | . . 2 . Ballistic Gun 5 | 1 . 1 3 Ballistic Cannon . | . . . . Launcher 2 | . . . 2 Special Weapon . | . . . . Impact Weapon . | . . . . Slashing Weapon . | . . . . Piercing Weapon . | . . . . Special Melee Weapon 1 | . . . 1 Unidentified Prototypes . | . . . . Corrupted Parts 2 | . . 1 1 System Corruption 3 | . . 1 2 Parts Lost 27 | . 5 10 12 Power 4 | . . 2 2 Propulsion 11 | . 3 5 3 Utility 3 | . 1 . 2 Weapon 9 | . 1 3 5 Highest Loss Streak 8 | . 2 3 8 To Critical Strikes . | . . . . Average Slot Usage (%) 77 | . 87 72 62 Engine 10 | . 13 10 4 Leg 4 | . . 7 7 Wheel 4 | . 9 . . Hover 3 | . . 3 11 Flight 9 | . 10 12 . Device 9 | . 11 6 11 Processor 11 | . 13 11 9 Energy Gun 14 | . 14 16 8 Energy Cannon 1 | . . 2 . Ballistic Gun 7 | . 13 1 5 Peak Build Rating 18 | 5 7 15 18 Average Rating 7 | 3 6 8 11 On Entrance 5 | . 5 5 13 Naked Turns . | . . . . Heaviest Build 16 | 6 9 14 16 Greatest Support 40 | 26 26 30 40 Greatest Overweight (x) 3 | . 2 3 2 Average Overweight (x) . | . . . . Largest Inventory Capacity 5 | 5 5 5 5 Average Capacity 5 | 5 5 5 5 Most Carried 5 | . 5 5 4 Average Carried 3 | . 2 3 2 Final Capacity 5 | 5 5 5 5 Final Carried 5 | . 4 5 3 Class Distribution -------------------- 93% | Mutant 6% | Skirmisher Dominant Class ---------------- Mutant | -10/Materials Mutant | -9/Materials Mutant | -8/Materials Resources | -11 -10 -9 -8 ----------- Run | Yrd Mat Mat Mat Matter Collected 719 | . 207 356 156 Remotely . | . . . . Salvage Created 1070 | . 241 449 380 Parts 84 | . 19 33 32 Haulers Intercepted . | . . . . Recyclers Shooed . | . . . . Parts Field Recycled . | . . . . Retrieved Matter . | . . . . Parts Self-Destructed . | . . . . Prevented . | . . . . Kills | -11 -10 -9 -8 ------- Run | Yrd Mat Mat Mat Combat Hostiles Destroyed 27 | . 8 9 10 Melee 1 | . . . 1 Guns 15 | . 8 4 3 Cannons 5 | . . 5 . AOE 6 | . . . 6 Classes Destroyed 4 | . 2 1 1 Builder 3 | . . . 3 Swarmer 6 | . 3 . 3 Grunt 14 | . 5 5 4 Sentry 7 | . . 4 3 Best Kill Streak 6 | . 2 2 6 Combat Bots Only 4 | . 2 2 4 Max Kills in Single Turn 3 | . 1 1 3 Gunslinging . | . . . . Exploded 3 | . . . 3 Melee 1 | . . . 1 Uniques/NPCs Destroyed . | . . . . Combat | -11 -10 -9 -8 -------- Run | Yrd Mat Mat Mat Hostile Shots Fired 254 | . 62 83 109 Missed 76 | . 21 26 29 Damage Taken 2661 | . 441 806 1414 Core 844 | . 113 180 551 Absorbed by Shields . | . . . . Core Remaining (%) 69 | 100 54 55 . Volleys Fired 105 | . 34 43 28 Largest 3 | . 2 2 3 Hottest 132 | . 60 96 132 Shots Fired 173 | . 65 65 43 Gun 146 | . 65 45 36 Cannon 20 | . . 20 . Launcher 7 | . . . 7 Special . | . . . . Kinetic 61 | . 32 5 24 Thermal 85 | . 33 40 12 Explosive 7 | . . . 7 Electromagnetic 20 | . . 20 . Robot Hit Streak 9 | . 9 6 5 Robot Miss Streak 4 | . 3 4 3 Penetration Max . | . . . . Secondary Targets 2 | . 1 1 . Max Gunslinging Chain 1 | . 1 1 . Shots Hit Robots 99 | . 40 40 19 Core Hits 68 | . 17 17 34 Critical Kills . | . . . . Critical Parts Destroyed . | . . . . Critical Strikes . | . . . . Melee Attacks . | . . . . Impact . | . . . . Slashing . | . . . . Piercing . | . . . . Sneak Attacks . | . . . . Combat Hostiles . | . . . . Follow-up Attacks . | . . . . Damage Inflicted 2007 | . 478 596 933 Guns 1066 | . 473 324 269 Cannons 271 | . . 271 . Explosions 649 | . . . 649 Melee . | . . . . Ramming 21 | . 5 1 15 Kinetic 516 | . 244 61 211 Thermal 550 | . 229 263 58 Explosive 486 | . . . 486 Electromagnetic 434 | . . 271 163 Impact . | . . . . Slashing . | . . . . Piercing . | . . . . Highest Corruption 4 | . . 1 4 Average Corruption 1 | . . 1 3 Corruption Purged . | . . . . Corruption Blocked . | . . . . Effects 4 | . . 2 2 Message Errors 2 | . . 1 1 Matter Fused 1 | . . . 1 Misfires 1 | . . 1 . Overload Shots . | . . . . Overflow Damage 4 | . . . 4 Projectiles . | . . . . Explosions 4 | . . . 4 Melee . | . . . . Knockbacks . | . . . . Impact . | . . . . Kinetic . | . . . . Secondary . | . . . . Self-Inflicted Damage 136 | . 2 . 134 Shots 4 | . . . 4 Rammed 7 | . 2 . 5 Targets Rammed 8 | . 2 1 5 Kicked 1 | . . 1 . Crushed . | . . . . Highest Temperature 284 | . 102 249 284 Average Temperature 62 | . 30 72 93 Received Heat Transfer 1296 | . 183 357 756 Effects 2 | . . 1 1 Energy Bleed 1 | . . 1 . Interference 1 | . . . 1 Siege Activations . | . . . . Robots Corrupted . | . . . . Combat Hostiles . | . . . . Parts Fried . | . . . . Impact Corruptions . | . . . . Robots Melted . | . . . . Combat Hostiles . | . . . . Parts Melted . | . . . . Heat Transferred 1224 | . 500 600 124 Parts Sabotaged . | . . . . Parts Stolen . | . . . . Parts Stripped . | . . . . Power Chain Reactions . | . . . . Alert | -11 -10 -9 -8 ------- Run | Yrd Mat Mat Mat Peak Influence 430 | . 225 180 430 Initial 27 | . . 22 27 Average 62 | . 52 43 158 Maximum Alert Level 2 | . 1 . 2 Low Security (%) 92 | 100 96 100 61 Level 1 7 | . 3 . 37 Level 2 . | . . . . Level 3 . | . . . . Level 4 . | . . . . Level 5 . | . . . . High Security . | . . . . Max Security . | . . . . Squads Dispatched 5 | . 1 2 2 Investigation . | . . . . Extermination . | . . . . Reinforcement 5 | . 1 2 2 Assault . | . . . . Garrison . | . . . . Intercept . | . . . . Searches Triggered . | . . . . Construction Impeded 1 | . . . 1 Haulers Reinforced . | . . . . Active Scanning Responses . | . . . . Cargo Convoy Interrupts . | . . . . Stealth | -11 -10 -9 -8 --------- Run | Yrd Mat Mat Mat Distress Signals 3 | . 2 1 . Communications Jammed . | . . . . Distress Signals . | . . . . Times Spotted 55 | . 21 16 18 Peak Tracking Total 7 | . 7 3 7 Tactical Retreats 11 | . 7 . 4 Traps | -11 -10 -9 -8 ------- Run | Yrd Mat Mat Mat Traps Triggered . | . . . . Indirectly . | . . . . Trap Hack Attempts . | . . . . Triggered . | . . . . Disarmed . | . . . . Reprogrammed . | . . . . Reused . | . . . . Traps Extracted . | . . . . Installed . | . . . . Triggered . | . . . . Machines | -11 -10 -9 -8 ---------- Run | Yrd Mat Mat Mat Machines Disabled 5 | . . 1 4 Max in Single Turn 2 | . . 1 2 Machines Repaired . | . . . . Machines Dismantled . | . . . . Machines Sabotaged . | . . . . Overloaded Fab Kills . | . . . . Hacking | -11 -10 -9 -8 --------- Run | Yrd Mat Mat Mat Machines Accessed 6 | . 2 3 1 Terminals 5 | . 2 2 1 Fabricators . | . . . . Repair Stations . | . . . . Recycling Units . | . . . . Scanalyzers 1 | . . 1 . Garrison Access . | . . . . Total Hacks 13 | . 5 4 4 Successful 9 | . 3 4 2 Failed 4 | . 2 . 2 Catastrophic 1 | . 1 . . Database Lockouts . | . . . . Manual . | . . . . Terminals 11 | . 5 2 4 Fabricators . | . . . . Repair Stations . | . . . . Recycling Units . | . . . . Scanalyzers 2 | . . 2 . Garrison Access . | . . . . Terminal Hacks 7 | . 3 2 2 Prototype ID Bank 1 | . . 1 . Alert Level 1 | . 1 . . Locate Traps 1 | . 1 . . Maintenance Status 2 | . . 1 1 Zone Layout 2 | . 1 . 1 Fabricator Hacks . | . . . . Repair Station Hacks . | . . . . Recycling Unit Hacks . | . . . . Scanalyzer 2 | . . 2 . Insert Component 1 | . . 1 . Analyze 1 | . . 1 . Garrison Access Hacks . | . . . . Unauthorized Hacks . | . . . . Terminals . | . . . . Fabricators . | . . . . Repair Stations . | . . . . Recycling Units . | . . . . Scanalyzers . | . . . . Garrison Access . | . . . . Data Cores Recovered . | . . . . Used . | . . . . Hacking Detections 3 | . 2 . 1 Full Trace Events . | . . . . Feedback Events . | . . . . Feedback Blocked . | . . . . Robot Schematics Acquired . | . . . . Robots Built . | . . . . Authchips . | . . . . Time . | . . . . Total Robot Build Rating . | . . . . Part Schematics Acquired 1 | . . 1 . Parts Built . | . . . . Authchips . | . . . . Time . | . . . . Total Part Build Rating . | . . . . Parts Repaired . | . . . . Time . | . . . . Parts Recycled . | . . . . Recycled Matter . | . . . . Retrieved Matter . | . . . . Retrieved Components . | . . . . Parts Scanalyzed 1 | . . 1 . Part Schematics Acquired 1 | . . 1 . Parts Damaged . | . . . . Bothacking | -11 -10 -9 -8 ------------ Run | Yrd Mat Mat Mat Used RIF Installer . | . . . . Robots Hacked . | . . . . Non-combat . | . . . . Combat . | . . . . Robot Hacks Applied . | . . . . Relay Couplers Released . | . . . . Fabnet Peak Effective % . | . . . . Robots Rewired . | . . . . Allies Hacked . | . . . . Hacks Repelled . | . . . . Allies | -11 -10 -9 -8 -------- Run | Yrd Mat Mat Mat Total Allies . | . . . . Largest Group . | . . . . Highest-Rated Group . | . . . . Highest-Rated Ally . | . . . . Total Orders . | . . . . Ally Attacks . | . . . . Total Damage . | . . . . Kills . | . . . . Allies Corrupted . | . . . . Allies Melted . | . . . . Intel | -11 -10 -9 -8 ------- Run | Yrd Mat Mat Mat Robot Analysis Total . | . . . . Derelict Logs Recovered . | . . . . Drone Launches . | . . . . Drone Recoveries . | . . . . Exploration | -11 -10 -9 -8 ------------- Run | Yrd Mat Mat Mat Turns Passed 2310 | 53 932 989 336 Spaces Moved 2004 | 52 867 790 295 Core 224 | 4 108 51 61 Treads . | . . . . Legs 157 | . 6 88 63 Wheels 458 | 48 384 26 . Hover 339 | . . 168 171 Flight 826 | . 369 457 . Fastest Speed 37 | 50 37 37 50 Average Speed 94 | 86 91 105 71 Slowest Speed 210 | 90 200 210 180 Overloaded Moves . | . . . . Propulsion Burnouts . | . . . . Robots Hopped 1 | . 1 . . Cave-ins Triggered . | . . . . Exploration Rate (%) 33 | 3 61 44 25 Regions Visited 3 Branch Regions . Pre-discovered Areas . | . . . . Known Exits Taken 2 | . 1 1 . Unknown Exits Taken 1 | 1 . . . Scrap Searched . | . . . . Spaces Dug 11 | . . . 11 Terrain Destroyed 67 | . . . 67 Melee . | . . . . Projectile . | . . . . AOE 67 | . . . 67 Terrain Rammed . | . . . . Walls Destroyed . | . . . . Machines Disabled . | . . . . Actions | -11 -10 -9 -8 --------- Run | Yrd Mat Mat Mat Total 2254 | 57 937 880 380 Wait 50 | 1 5 10 34 Move 1999 | 51 864 789 295 Hop 1 | . 1 . . Pick Up 19 | . 9 7 3 Fast Attach 33 | 5 7 12 9 Attach 11 | . 3 4 4 Detach 8 | . 4 4 . Swap 6 | . 1 4 1 Drop 14 | . 7 6 1 Fire 105 | . 34 43 28 Melee . | . . . . Ram 7 | . 2 . 5 Kick 1 | . . 1 . Crush . | . . . . Escape Stasis . | . . . . Rewire . | . . . . Trap . | . . . . Miscellaneous . | . . . . Route ------- -11/Scrapyard -10/Materials (discovered 2 exits: *Mat / *Min) -9/Materials (discovered 2 exits: *Mat x2) -8/Materials History --------- Turn | Location | Event 5 | -11/Scrapyard | Discovered new exit (range 16) 54 | -11/Scrapyard | Entered Materials 273 | -10/Materials | Discovered new exit (range 7) 281 | -10/Materials | Identified exit to Materials 316 | -10/Materials | Build established: Mutant 558 | -10/Materials | Discovered new exit (range 16) 877 | -10/Materials | Identified exit to Mines 986 | -10/Materials | Entered another Materials area 986 | -9/Materials | Evolved 2 slots: Propulsion x1, Utility x1 1519 | -9/Materials | Discovered new exit (range 5) 1525 | -9/Materials | Identified exit to Materials 1577 | -9/Materials | Lost 3 parts (2n1w) 1826 | -9/Materials | Lost 3 parts (2n1w) 1965 | -9/Materials | Discovered exit to Materials (range 8) 1975 | -9/Materials | Entered another Materials area 1975 | -8/Materials | Evolved 2 slots: Power x1, Weapon x1 2180 | -8/Materials | Lost 8 parts (1p3n1u3w) 2194 | -8/Materials | Core integrity fell below 50% 2214 | -8/Materials | Core integrity fell below 20% 2242 | -8/Materials | Lost 4 parts (1p1u2w) 2311 | -8/Materials | Destroyed self via exploding Neutrino Reactor Last Messages --------------- 02275_ YFCCRD:TP9 MBFMN26CS9OLC:7 02275_ U-05 Engineer lays Concrete. 02276_ Acquired Hpw. Shotgun. 02277_ U-05 Engineer builds a Door. 02277_ U-05 Engineer lays Concrete. 02278_ U-05 Engineer builds a Wall. 02279_ U-05 Engineer lays Concrete. 02282_ U-05 Engineer builds a Wall. 02284_ Acquired Recoil Stabilizer. 02288_ U-05 Engineer lays Concrete. 02288_ Acquired Hvy. Particle Cannon. 02289_ U-05 Engineer lays Concrete. 02295_ U-05 Engineer builds a Door. 02296_ System corrupted: Matter fused (-8). 02308_ S-10 Pest destroyed. 02308_ Terminal disabled. 02308_ S-10 Pest destroyed. 02311_ Y-45 Defender destroyed. 02311_ Neutrino Reactor explodes. 02311_ U-05 Engineer destroyed. Map ----- +----------------------------------------------------+ | ??? ??????????????????????????? | | ??? ???????????????????????????? | | ???# #???????????????????????????? | | ####/#???????????????????????????? | | #???????????????????????????? | | #???????????????????????????? | | #???????????????????????????? | | #????? ????#????????????????? | | #????? #????????????????????? | | #????? #????????????????????? | | #????? #????????????????????? | | #????# #????????????##+?????? | | +###+#????# ##?????????? *?????? | | ###### #### ????##" [%?????? | | # # | ??????# ! ?????? | | # % ???????# %[ ?????? | | # ????????# / ?????? | | # ##???##### #?????? | | # # #???# "" [ ?????? | | ##" #???# ""S [ ?????? | | # #???# "" [ #?????? | | # [%! #??## =! #?????? | | # #?## #?????? | | " # #?# #?????? | | # # #?# #?????? | | #! # #??# =% @ #?????? | | ######## #### [= #+#?????? | | #??????# # +?????? | | #??????# # [ ##=%* #?????? | | #??????# # + | #?????? | | #??????# # ### #?????? | | #??????# # #?#u ##+#??? | | #?#????# # ### #??? | | ######## # # #??? | | #? # ###/### # #??? | | # # !* # = #??? | | # # # #??? | | + """ # ####+###? | | # """ # #### # ## # | | # """ # ############## # | | ######## # #??# """# | | ####### # #??# """# | | # #??# """# | | [ + """ #??# # | | !% # """ "" #??######## | | ####### # """ T" #???#?????? | | +######### # "" #?????????? | | = ## # #?????????? | | ## ###########?????????? | | ] """ # ########???????????? | +----------------------------------------------------+ Best States ------------- Heat Dissipation 31 Energy Generation 12 Energy Capacity 265 Matter Stores 300 Matter Capacity 300 Sight Range 16 Terrain Scan Range 14 Terrain Scan Density 10 Evasion (%) 62 Recoil Reduction 4 Item Schematics ----------------- Ion Engine | -9/Materials | Scanalyzed Robot Schematics ------------------ None Fabricated ------------ Nothing Alien Tech Used ----------------- None Achievements -------------- Let's See Who's Tougher Challenges ------------ None Game ------ Seed SwordMachineRigger Manual? 0 Play Time 00:41:39 Cumulative 3.1 hours Start 2025.01.17 @ 17:37:01 End 2025.01.17 @ 18:49:00 Sessions 3 Manual Loads 0 Difficulty Rogue Special Mode None Game No. 8 Rogue 8 Adventurer 0 Explorer 0 Win Type - Total 0 Types 0/0/0/0/0/0/0/0/0 Lore% 1 Gallery% 4 Achievement% 4 Wizard Run 0 Options --------- Layout 1 ASCII 0 Keyboard 1 Movement Vi Keybinds 0 Fullscreen 2 Font 24/Smallcaps Map View 25x17 Zoom Use 95% Tactical HUD 1 Map Filters NONE Filters NONE Steam 1 RUN: fdabe219-4f13-404c-9297-ecfa7d0ed2b4